bitfinex-derivatives/quotes_BNBF0:USTF0_20251225
["timestamp","ask_amount","ask_price","bid_price","bid_amount"]
[1766669367496,0.208157,836.16,835.31,1.19454977]
[1766669367793,1.19691096,836.15,835.31,1.19454977]
[1766669368093,1.19691096,836.14,835.31,1.19454977]
[1766669368296,1.19691096,836.13,835.31,1.19454977]
[1766669368493,1.19691096,836.12,835.31,1.19454977]
[1766669368696,1.19691096,836.11,835.31,1.19454977]
[1766669368894,1.19691096,836.1,835.31,1.19454977]
[1766669369095,0.208157,836.16,835.31,1.19454977]
[1766669369294,13.98105753,836.15,835.31,1.19454977]
[1766669369494,1.19691096,836.14,835.31,1.19454977]
[1766669369697,1.19691096,836.13,835.31,1.19454977]
[1766669369893,1.19691096,836.12,835.31,1.19454977]
[1766669370093,1.19691096,836.11,835.31,1.19454977]
[1766669370296,1.19691096,836.1,835.31,1.19454977]
[1766669370493,12.78414657,836.15,835.31,1.19454977]
[1766669370692,1.19691096,836.14,835.31,1.19454977]
[1766669370893,1.19691096,836.13,835.31,1.19454977]
[1766669371098,12.78414657,836.15,835.34,1.19454977]
[1766669371295,1.1968719,836.14,835.34,1.19454977]
[1766669371497,1.1968719,836.13,835.34,1.19454977]
[1766669371697,12.78414657,836.15,835.34,1.19454977]
[1766669372000,1.19687201,836.14,835.34,1.19454977]
[1766669372200,1.19687201,836.13,835.34,1.19454977]
[1766669372395,12.78414657,836.15,835.34,1.19454977]
[1766669372596,1.19687201,836.14,835.34,1.19454977]
[1766669372896,1.19687201,836.13,835.34,1.19454977]
[1766669373099,0.208157,836.16,835.34,1.19454977]
[1766669373297,1.19687201,836.15,835.34,1.19454977]
[1766669373497,1.19687201,836.14,835.34,1.19454977]
[1766669373704,1.19687201,836.13,835.34,1.19454977]
[1766669373896,0.208157,836.16,835.34,1.19454977]
[1766669374198,1.19687253,836.15,835.34,1.19454977]
[1766669374400,1.19687253,836.14,835.34,1.19454977]
[1766669376901,1.19687253,836.14,835.35,1.19454977]
[1766669378203,1.19687253,836.14,835.34,1.19454977]
[1766669378503,1.19687253,836.14,835.35,1.19454977]
[1766669378700,0.208157,836.16,835.35,1.19454977]
[1766669378903,1.19686011,836.15,835.35,1.19454977]
[1766669379203,1.19686011,836.14,835.35,1.19454977]
[1766669379403,0.208157,836.16,835.34,1.19454977]
[1766669379601,1.19686021,836.15,835.34,1.19454977]
[1766669379802,1.19686021,836.14,835.34,1.19454977]
[1766669380005,0.208157,836.16,835.34,1.19454977]
[1766669380204,1.19686021,836.15,835.34,1.19454977]
[1766669380404,1.19686021,836.14,835.34,1.19454977]
[1766669380606,0.208157,836.16,835.34,1.19454977]
[1766669380806,1.19686021,836.15,835.34,1.19454977]
[1766669381005,1.19686021,836.14,835.34,1.19454977]
[1766669381310,12.88005234,836.15,835.34,1.19454977]
[1766669381508,1.19686021,836.14,835.34,1.19454977]
[1766669381804,12.88005234,836.15,835.34,1.19454977]
[1766669382006,1.19686021,836.14,835.34,1.19454977]
[1766669382202,12.88005234,836.15,835.34,1.19454977]
[1766669382407,1.19686021,836.14,835.34,1.19454977]
[1766669382604,12.88005234,836.15,835.34,1.19454977]
[1766669382808,1.19685979,836.14,835.34,1.19454977]
[1766669383006,12.88005234,836.15,835.34,1.19454977]
[1766669383210,1.19685969,836.14,835.34,1.19454977]
[1766669383409,12.88005234,836.15,835.34,1.19454977]
[1766669383707,1.19685969,836.14,835.34,1.19454977]
[1766669383908,12.88005234,836.15,835.34,1.19454977]
[1766669384113,1.19685969,836.14,835.34,1.19454977]
[1766669384314,0.208157,836.16,835.35,1.19454977]
[1766669384509,1.19685969,836.15,835.35,1.19454977]
[1766669384709,1.19685969,836.14,835.35,10.14107227]
[1766669384910,12.82691143,836.15,835.35,10.14107227]
[1766669385111,1.19685969,836.14,835.35,10.14107227]
[1766669385414,12.82691143,836.15,835.35,8.9465225]
[1766669385615,1.19685969,836.14,835.35,8.9465225]
[1766669385814,12.82691143,836.15,835.35,8.9465225]
[1766669386015,1.19685969,836.14,835.35,8.9465225]
[1766669386216,12.82691143,836.15,835.35,8.9465225]
[1766669386411,1.19685969,836.14,835.35,10.14107227]
[1766669386614,12.82691143,836.15,835.35,10.14107227]
[1766669386912,1.19685969,836.14,835.35,10.14107227]
[1766669387116,12.82691143,836.15,835.35,10.14107227]
[1766669387312,1.19685969,836.14,835.35,10.14107227]
[1766669387517,12.82691143,836.15,835.35,10.14107227]
[1766669387716,1.19685969,836.14,835.35,10.14107227]
[1766669388021,12.82691143,836.15,835.35,10.14107227]
[1766669388220,1.19685969,836.14,835.35,1.19454977]
[1766669388420,0.208157,836.16,835.35,1.19454977]
[1766669388617,1.19685969,836.15,835.35,1.19454977]
[1766669388817,1.19685969,836.14,835.35,1.19454977]
[1766669389021,0.208157,836.16,835.35,1.19454977]
[1766669389320,1.19685969,836.15,835.35,1.19454977]
[1766669389522,1.19685969,836.14,835.35,1.19454977]
[1766669389725,0.208157,836.16,835.35,1.19454977]
[1766669390021,1.19685969,836.15,835.35,1.19454977]
[1766669390218,1.19685969,836.14,835.35,1.19454977]
[1766669390422,0.208157,836.16,835.35,1.19454977]
[1766669390620,1.19685969,836.15,835.35,1.19454977]
[1766669390825,1.19685969,836.14,835.35,1.19454977]
[1766669391026,0.208157,836.16,835.35,1.19454977]
[1766669391325,1.19685969,836.15,835.35,1.19454977]
[1766669391523,1.19685969,836.14,835.35,1.19454977]
[1766669391823,0.208157,836.16,835.35,1.19454977]
[1766669392027,1.19685969,836.15,835.35,1.19454977]
[1766669392227,1.19685969,836.14,835.35,1.19454977]
[1766669392525,0.208157,836.16,835.35,1.19454977]
[1766669392723,1.19685969,836.15,835.35,1.19454977]
[1766669392928,1.19685969,836.14,835.35,1.19454977]
[1766669393225,1.19685969,836.13,835.35,1.19454977]
[1766669393425,0.208157,836.16,835.35,1.19454977]
[1766669393628,1.19685969,836.15,835.35,1.19454977]
[1766669393828,1.19685969,836.14,835.35,1.19454977]
[1766669394030,1.19685969,836.13,835.35,1.19454977]
[1766669394330,0.208157,836.16,835.36,1.19454977]
[1766669394530,1.19685969,836.15,835.36,1.19454977]
[1766669394830,14.17629478,836.14,835.36,10.35536828]
[1766669395031,1.19685969,836.13,835.36,10.35536828]
[1766669395231,12.97943509,836.14,835.36,10.35536828]
[1766669395431,1.19685969,836.13,835.36,10.35536828]
[1766669395631,12.97943509,836.14,835.36,10.35536828]
[1766669395931,1.19685969,836.13,835.36,10.35536828]
[1766669396131,12.97943509,836.14,835.36,10.35536828]
[1766669396327,1.19685969,836.13,835.36,10.35536828]
[1766669396532,12.97943509,836.14,835.36,10.35536828]
[1766669396731,1.19685969,836.13,835.36,10.35536828]
[1766669396930,12.97943509,836.14,835.36,10.35536828]
[1766669397129,1.19685969,836.13,835.36,10.35536828]
[1766669397334,12.97943509,836.14,835.36,10.35536828]
[1766669397630,1.19685969,836.13,835.36,10.35536828]
[1766669397830,12.97943509,836.14,835.36,10.35536828]
[1766669398033,1.19685969,836.13,835.36,10.35536828]
[1766669398229,0.208157,836.16,835.36,1.19454977]
[1766669398434,1.19685969,836.15,835.36,1.19454977]
[1766669398630,0.208157,836.16,835.36,1.19454977]
[1766669398631,1.19685969,836.14,835.36,1.19454977]
[1766669398834,1.19685969,836.13,835.36,1.19454977]
[1766669399031,0.208157,836.16,835.36,1.19454977]
[1766669399235,1.19685969,836.15,835.36,1.19454977]
[1766669399438,1.19685969,836.14,835.37,1.19454977]
[1766669399632,1.19685969,836.13,835.37,1.19454977]
[1766669399836,1.19685969,836.12,835.37,1.19454977]
[1766669400037,0.208157,836.16,835.37,1.19454977]
[1766669400233,1.19685969,836.15,835.37,1.19454977]
[1766669400433,1.19685969,836.14,835.37,1.19454977]
[1766669400638,1.19685969,836.13,835.37,1.19454977]
[1766669400835,1.19685969,836.12,835.37,1.19454977]
[1766669401134,0.208157,836.16,835.37,1.19454977]
[1766669401339,1.19685969,836.15,835.37,1.19454977]
[1766669401539,1.19685969,836.14,835.37,1.19454977]
[1766669401738,1.19685969,836.13,835.37,1.19454977]
[1766669401939,1.19685969,836.12,835.37,1.19454977]
[1766669402139,0.208157,836.16,835.37,1.19454977]
[1766669402340,1.19685969,836.15,835.37,1.19454977]
[1766669402541,1.19685969,836.14,835.37,1.19454977]
[1766669402740,1.19685969,836.13,835.37,1.19454977]
[1766669403036,1.19685969,836.12,835.37,1.19454977]
[1766669403342,0.208157,836.16,835.37,1.19454977]
[1766669403636,1.19685969,836.15,835.37,1.19454977]
[1766669403840,1.19685969,836.14,835.37,1.19454977]
[1766669404136,1.19685969,836.13,835.37,1.19454977]
[1766669404339,1.19685969,836.12,835.37,1.19454977]
[1766669404541,0.208157,836.16,835.37,1.19454977]
[1766669404836,1.19685969,836.15,835.37,1.19454977]
[1766669405037,1.19685969,836.14,835.37,1.19454977]
[1766669405337,0.208157,836.16,835.37,1.19454977]
[1766669405338,1.19685969,836.13,835.37,1.19454977]
[1766669405540,1.19685969,836.12,835.37,1.19454977]
[1766669405837,0.208157,836.16,835.37,1.19454977]
[1766669406038,1.19685969,836.15,835.37,1.19454977]
[1766669406238,1.19685969,836.14,835.37,1.19454977]
[1766669406437,1.19685969,836.13,835.37,1.19454977]
[1766669406741,1.19685969,836.12,835.37,1.19454977]
[1766669406941,0.208157,836.16,835.37,1.19454977]
[1766669407238,1.19685969,836.15,835.37,1.19454977]
[1766669407437,1.19685969,836.14,835.37,1.19454977]
[1766669407640,1.19685969,836.13,835.37,1.19454977]
[1766669407838,1.19685969,836.12,835.37,1.19454977]
[1766669408039,0.208157,836.16,835.37,1.19454977]
[1766669408243,1.19686042,836.15,835.37,1.19454977]
[1766669408443,1.19686042,836.14,835.37,1.19454977]
[1766669408643,1.19686042,836.13,835.37,1.19454977]
[1766669408845,1.19686042,836.12,835.37,1.19454977]
[1766669409041,0.208157,836.16,835.37,1.19454977]
[1766669409239,1.19686042,836.15,835.37,1.19454977]
[1766669409441,1.19686042,836.14,835.37,1.19454977]
[1766669409643,1.19686042,836.13,835.37,1.19454977]
[1766669409842,1.19686042,836.12,835.37,1.19454977]
[1766669410044,0.208157,836.16,835.37,1.19454977]
[1766669410241,1.19686042,836.15,835.37,1.19454977]
[1766669410445,1.19686042,836.14,835.37,1.19454977]
[1766669410742,1.19686042,836.13,835.37,1.19454977]
[1766669410941,0.208157,836.16,835.37,1.19454977]
[1766669410942,1.19686042,836.12,835.37,1.19454977]
[1766669411144,1.19686042,836.11,835.37,1.19454977]
[1766669411441,0.208157,836.16,835.37,1.19454977]
[1766669411644,1.19686042,836.15,835.37,1.19454977]
[1766669411845,1.19686042,836.14,835.37,1.19454977]
[1766669412041,1.19686042,836.13,835.37,1.19454977]
[1766669412342,1.19686042,836.12,835.37,1.19454977]
[1766669412546,1.19686042,836.11,835.37,1.19454977]
[1766669412842,0.208157,836.16,835.37,1.19454977]
[1766669413046,1.19686042,836.15,835.37,1.19454977]
[1766669413246,1.19686042,836.14,835.37,1.19454977]
[1766669413542,1.19686042,836.13,835.38,1.19454977]
[1766669413746,0.208157,836.16,835.38,1.19454977]
[1766669413747,1.19686042,836.12,835.38,1.19454977]
[1766669413942,1.19686042,836.11,835.38,1.19454977]
[1766669414146,0.208157,836.16,835.38,1.19454977]
[1766669414346,1.19686042,836.15,835.38,1.19454977]
[1766669414545,1.19686042,836.14,835.38,1.19454977]
[1766669414744,1.19686042,836.13,835.38,1.19454977]
[1766669414945,1.19686042,836.12,835.38,1.19454977]
[1766669415148,1.19686042,836.11,835.38,1.19454977]
[1766669415445,1.19686042,836.1,835.38,1.19454977]
[1766669415646,0.208157,836.16,835.38,1.19454977]
[1766669415849,1.19686042,836.15,835.38,1.19454977]
[1766669416048,1.19686042,836.14,835.39,1.19454977]
[1766669416248,1.19686042,836.13,835.39,1.19454977]
[1766669416447,1.19686042,836.12,835.39,1.19454977]
[1766669416645,1.19686042,836.11,835.39,1.19454977]
[1766669416846,0.208157,836.16,835.39,1.19454977]
[1766669417047,1.19685039,836.15,835.39,1.19454977]
[1766669417247,1.19685039,836.14,835.39,1.19454977]
[1766669417448,1.19685039,836.13,835.39,1.19454977]
[1766669417649,1.19685039,836.12,835.39,1.19454977]
[1766669417850,1.19685039,836.11,835.39,1.19454977]
[1766669418050,0.208157,836.16,835.39,1.19454977]
[1766669418248,1.19685039,836.15,835.39,1.19454977]
[1766669418446,1.19685039,836.14,835.39,1.19454977]
[1766669418746,1.19685039,836.13,835.39,1.19454977]
[1766669418946,1.19685039,836.12,835.39,1.19454977]
[1766669419148,1.19685039,836.11,835.39,1.19454977]
[1766669419348,0.208157,836.16,835.39,1.19454977]
[1766669419547,1.19685039,836.15,835.39,1.19454977]
[1766669419751,1.19685039,836.14,835.39,1.19454977]
[1766669419950,1.19685039,836.13,835.39,1.19454977]
[1766669420151,1.19685039,836.12,835.39,1.19454977]
[1766669420451,1.19685039,836.11,835.39,1.19454977]
[1766669420649,0.208157,836.16,835.39,1.19454977]
[1766669420951,1.19685039,836.15,835.39,1.19454977]
[1766669421152,1.19685039,836.14,835.39,1.19454977]
[1766669421448,1.19685039,836.13,835.39,1.19454977]
[1766669421652,1.19685039,836.12,835.39,1.19454977]
[1766669421849,1.19685039,836.11,835.39,1.19454977]
[1766669422048,0.208157,836.16,835.39,1.19454977]
[1766669422251,1.19685039,836.15,835.39,1.19454977]
[1766669422446,1.19685039,836.14,835.39,1.19454977]
[1766669422650,1.19685039,836.13,835.39,1.19454977]
[1766669422849,1.19685039,836.12,835.39,1.19454977]
[1766669423052,1.19685039,836.11,835.39,1.19454977]
[1766669423350,0.208157,836.16,835.39,1.19454977]
[1766669423651,1.19685039,836.15,835.39,1.19454977]
[1766669423855,1.19685039,836.14,835.39,1.19454977]
[1766669424152,1.19685039,836.13,835.39,1.19454977]
[1766669424355,1.19685039,836.12,835.39,1.19454977]
[1766669424652,1.19685039,836.11,835.39,1.19454977]
[1766669424850,0.208157,836.16,835.39,1.19454977]
[1766669425052,1.19685039,836.15,835.39,1.19454977]
[1766669425251,1.19685039,836.14,835.39,1.19454977]
[1766669425450,1.19685039,836.13,835.39,1.19454977]
[1766669425652,1.19685039,836.12,835.39,1.19454977]
[1766669425857,1.19685039,836.11,835.39,1.19454977]
[1766669426054,0.89509651,836.27,835.42,1.19454977]
[1766669426258,1.40495889,836.26,835.41,1.19454977]
[1766669426458,1.19680998,836.25,835.41,1.19454977]
[1766669430959,1.19680998,836.25,835.42,1.19454977]
[1766669431158,12.83363707,836.25,835.51,1.19454977]
[1766669431861,12.83363707,836.25,835.52,1.19454977]
[1766669432162,12.83363707,836.25,835.5,1.19454977]
[1766669432357,12.83363707,836.25,835.53,1.19454977]
[1766669432560,0.68173287,836.24,835.38,1.79182466]
[1766669432759,0.68173287,836.23,835.38,1.79182466]
[1766669433055,0.68173287,836.22,835.38,1.79182466]
[1766669433257,0.68173287,836.21,835.36,1.79182466]
[1766669433459,0.68173287,836.2,835.36,1.79182466]
[1766669433660,0.68173287,836.19,835.36,1.79182466]
[1766669433857,12.83363707,836.25,835.36,1.79182466]
[1766669434058,0.68150391,836.24,835.36,1.79182466]
[1766669434262,0.68150391,836.23,835.36,1.79182466]
[1766669434561,0.68150391,836.22,835.36,1.79182466]
[1766669434757,0.68150391,836.21,835.36,1.79182466]
[1766669434962,0.68150391,836.2,835.36,1.79182466]
[1766669435262,0.20812339,836.39,835.35,1.79182466]
[1766669435460,1.87777682,836.38,835.35,1.79182466]
[1766669435658,1.87777682,836.37,835.35,1.79182466]
[1766669435863,1.87777682,836.36,835.35,1.79182466]
[1766669436162,0.68118241,836.35,835.34,1.79182466]
[1766669436463,0.68118241,836.34,835.34,1.79182466]
[1766669436759,0.68118241,836.33,835.34,1.79182466]
[1766669437061,0.68118241,836.32,835.34,1.79182466]
[1766669437259,0.68118241,836.31,835.34,1.79182466]
[1766669437563,0.68118241,836.3,835.34,1.79182466]
[1766669437758,0.68118241,836.29,835.34,1.79182466]
[1766669437960,0.68118241,836.28,835.34,1.79182466]
[1766669438159,0.68118241,836.27,835.34,1.79182466]
[1766669438364,0.68118241,836.26,835.33,1.79182466]
[1766669438563,0.68118241,836.25,835.33,1.79182466]
[1766669438760,0.68118241,836.24,835.33,1.79182466]
[1766669438961,0.68118241,836.23,835.33,1.79182466]
[1766669439260,12.7981955,836.27,835.33,1.79182466]
[1766669439460,0.68077861,836.26,835.33,1.79182466]
[1766669439763,0.68077861,836.25,835.33,1.79182466]
[1766669439962,0.68077861,836.24,835.33,1.79182466]
[1766669440160,12.7981955,836.27,835.33,1.79182466]
[1766669440362,0.68072228,836.26,835.34,1.79182466]
[1766669440560,0.68072228,836.25,835.34,1.79182466]
[1766669440766,12.7981955,836.27,835.34,1.79182466]
[1766669440962,0.68072228,836.26,835.34,1.79182466]
[1766669441261,0.68072228,836.25,835.34,1.79182466]
[1766669441562,12.7981955,836.27,835.34,1.79182466]
[1766669441766,0.68063756,836.26,835.34,1.79182466]
[1766669441962,0.68063756,836.25,835.34,1.79182466]
[1766669442161,0.20812339,836.39,835.34,1.79182466]
[1766669442364,0.68056333,836.38,835.34,1.79182466]
[1766669442565,0.68056333,836.37,835.34,1.79182466]
[1766669442860,0.68056333,836.36,835.34,1.79182466]
[1766669443064,0.68056333,836.35,835.34,1.79182466]
[1766669443262,0.68056333,836.34,835.33,1.79182466]
[1766669443466,0.68056333,836.33,835.37,1.79182466]
[1766669443762,0.68056333,836.32,835.37,1.79182466]
[1766669443965,0.68056333,836.31,835.37,1.79182466]
[1766669444265,0.68056333,836.3,835.36,1.79182466]
[1766669444463,0.20812339,836.39,835.36,1.79182466]
[1766669444766,0.68044367,836.38,835.36,1.79182466]
[1766669444962,0.68044367,836.37,835.36,1.79182466]
[1766669445161,0.68044367,836.36,835.36,1.79182466]
[1766669445364,0.68044367,836.35,835.36,1.79182466]
[1766669445662,0.68044367,836.34,835.36,1.79182466]
[1766669445861,0.68044367,836.33,835.36,1.79182466]
[1766669446063,0.68044367,836.32,835.36,1.79182466]
[1766669446361,13.24774431,836.35,835.36,1.79182466]
[1766669446362,0.68044367,836.31,835.36,1.79182466]
[1766669446662,13.24774431,836.35,835.36,1.79182466]
[1766669446861,0.68030033,836.34,835.36,1.79182466]
[1766669447065,0.68030033,836.33,835.36,1.79182466]
[1766669447265,0.68030033,836.32,835.35,1.79182466]
[1766669447461,0.68030033,836.31,835.35,1.79182466]
[1766669447666,13.24774431,836.35,835.35,1.79182466]
[1766669447868,0.68023848,836.34,835.35,1.79182466]
[1766669448068,0.68023848,836.33,835.35,1.79182466]
[1766669448268,0.68023848,836.32,835.35,1.79182466]
[1766669448468,0.68023848,836.31,835.35,1.79182466]
[1766669448668,13.24774431,836.35,835.35,1.79182466]
[1766669448868,0.68018565,836.34,835.35,1.79182466]
[1766669449068,0.68018565,836.33,835.35,1.79182466]
[1766669449264,0.68018565,836.32,835.35,1.79182466]
[1766669449468,0.20812339,836.39,835.35,1.79182466]
[1766669449767,0.68014124,836.38,835.35,1.79182466]
[1766669449968,0.68014124,836.37,835.35,1.79182466]
[1766669450165,0.68014124,836.36,835.35,1.79182466]
[1766669450365,0.68014124,836.35,835.35,1.79182466]
[1766669450567,0.20812339,836.39,835.35,1.79182466]
[1766669450568,0.68014124,836.34,835.35,1.79182466]
[1766669450866,0.68014124,836.33,835.35,1.79182466]
[1766669451069,0.68014124,836.32,835.35,1.79182466]
[1766669451269,0.20812339,836.39,835.34,1.79182466]
[1766669451569,0.68007569,836.38,835.34,1.79182466]
[1766669451768,0.68007569,836.37,835.34,1.79182466]
[1766669451970,0.68007569,836.36,835.34,1.79182466]
[1766669452170,0.68007569,836.35,835.34,1.79182466]
[1766669452371,0.68007569,836.34,835.34,1.79182466]
[1766669452666,0.68007569,836.33,835.34,1.79182466]
[1766669452871,0.68007569,836.32,835.34,1.79182466]
[1766669453070,0.20812339,836.39,835.34,1.79182466]
[1766669453270,0.68003983,836.38,835.34,1.79182466]
[1766669453470,0.68003983,836.37,835.34,1.79182466]
[1766669453667,0.68003983,836.36,835.34,1.79182466]
[1766669453872,0.68003983,836.35,835.34,1.79182466]
[1766669454075,0.68003983,836.34,835.34,1.79182466]
[1766669454268,0.68003983,836.33,835.34,1.79182466]
[1766669454474,0.68003983,836.32,835.34,1.79182466]
[1766669454672,0.20812339,836.39,835.34,1.79182466]
[1766669454875,0.68003256,836.38,835.34,1.79182466]
[1766669455075,0.68003256,836.37,835.34,1.79182466]
[1766669455275,0.68003256,836.36,835.34,1.79182466]
[1766669455476,0.68003256,836.35,835.34,1.79182466]
[1766669455677,0.68003256,836.34,835.34,1.79182466]
[1766669455875,0.68003256,836.33,835.34,1.79182466]
[1766669456075,0.68003256,836.32,835.34,1.79182466]
[1766669456274,0.20812339,836.39,835.34,1.79182466]
[1766669456577,0.6800534,836.38,835.34,1.79182466]
[1766669456777,0.6800534,836.37,835.34,1.79182466]
[1766669456974,0.6800534,836.36,835.34,1.79182466]
[1766669457177,0.6800534,836.35,835.34,1.79182466]
[1766669457378,0.6800534,836.34,835.34,1.79182466]
[1766669457577,0.6800534,836.33,835.34,1.79182466]
[1766669457776,0.6800534,836.32,835.34,1.79182466]
[1766669457976,0.20812339,836.39,835.34,1.79182466]
[1766669458176,0.68006763,836.38,835.34,1.79182466]
[1766669458476,0.68006763,836.37,835.34,1.79182466]
[1766669458673,0.68006763,836.36,835.34,1.79182466]
[1766669458874,0.68006763,836.35,835.34,1.79182466]
[1766669459074,0.68006763,836.34,835.34,1.79182466]
[1766669459277,0.68006763,836.34,835.17,54.87510399]
[1766669459278,0.68006763,836.33,835.35,1.79182466]
[1766669459474,0.68006763,836.32,835.35,1.79182466]
[1766669459679,0.20812339,836.39,835.35,1.79182466]
[1766669459876,0.68011684,836.38,835.35,1.79182466]
[1766669460076,0.68011684,836.37,835.35,1.79182466]
[1766669460275,0.68011684,836.36,835.35,1.79182466]
[1766669460477,0.68011684,836.35,835.35,1.79182466]
[1766669462583,0.68011684,836.35,835.34,1.79182466]
[1766669463281,0.68011684,836.35,835.35,1.79182466]
[1766669463978,0.68011684,836.34,835.35,1.79182466]
[1766669464177,0.68011684,836.33,835.35,1.79182466]
[1766669464381,0.68011684,836.32,835.35,1.79182466]
[1766669464578,0.68011684,836.31,835.35,1.79182466]
[1766669464881,0.68011684,836.3,835.35,1.79182466]
[1766669465176,0.20812339,836.39,835.35,1.79182466]
[1766669465382,0.68344514,836.38,835.35,1.79182466]
[1766669465576,0.68344514,836.37,835.35,1.79182466]
[1766669465781,0.68344514,836.36,835.35,1.79182466]
[1766669465983,0.68344514,836.35,835.35,1.79182466]
[1766669466178,0.68344514,836.34,835.34,1.79182466]
[1766669466380,0.68344514,836.33,835.34,1.79182466]
[1766669466580,0.68344514,836.32,835.29,1.79182466]
[1766669466785,0.68344514,836.31,835.29,1.79182466]
[1766669467083,0.68344514,836.3,835.29,1.79182466]
[1766669467382,0.68344514,836.29,835.23,1.79182466]
[1766669467587,0.68344514,836.28,835.23,1.79182466]
[1766669467788,0.68344514,836.27,835.23,1.79182466]
[1766669468084,0.68344514,836.26,835.23,1.79182466]
[1766669468287,0.68344514,836.25,835.24,1.79182466]
[1766669468488,12.81749857,836.35,835.24,1.79182466]
[1766669468489,0.68344514,836.24,835.24,1.79182466]
[1766669468688,0.68344514,836.23,835.24,1.79182466]
[1766669468884,0.68344514,836.22,835.24,1.79182466]
[1766669469086,0.68344514,836.21,835.24,1.79182466]
[1766669469289,0.68344514,836.2,835.24,1.79182466]
[1766669469489,0.68344514,836.19,835.24,1.79182466]
[1766669469789,0.68344514,836.18,835.24,1.79182466]
[1766669470087,0.68344514,836.17,835.24,1.79182466]
[1766669470287,0.68344514,836.16,835.25,1.79182466]
[1766669470490,0.68344514,836.15,835.25,1.79182466]
[1766669470790,0.68344514,836.14,835.25,1.79182466]
[1766669470990,0.20812339,836.39,835.25,1.79182466]
[1766669471190,1.88054179,836.38,835.25,1.79182466]
[1766669471390,1.88054179,836.37,835.25,1.79182466]
[1766669471590,1.88054179,836.36,835.25,1.79182466]
[1766669471790,1.88054179,836.35,835.25,1.79182466]
[1766669471992,1.88054179,836.34,835.25,1.79182466]
[1766669472190,1.88054179,836.33,835.25,1.79182466]
[1766669472490,1.88054179,836.32,835.25,1.79182466]
[1766669472689,1.88054179,836.31,835.25,1.79182466]
[1766669472991,1.88054179,836.3,835.25,1.79182466]
[1766669473190,1.88054179,836.29,835.26,1.79182466]
[1766669473392,1.88054179,836.28,835.26,1.79182466]
[1766669473590,0.68383508,836.27,835.26,1.79182466]
[1766669473787,0.68383508,836.26,835.26,1.79182466]
[1766669473992,0.68383508,836.25,835.26,1.79182466]
[1766669474190,0.68383508,836.24,835.26,1.79182466]
[1766669474390,0.68383508,836.23,835.26,1.79182466]
[1766669474589,0.68383508,836.22,835.26,1.79182466]
[1766669474794,0.68383508,836.21,835.26,1.79182466]
[1766669475094,0.68383508,836.2,835.26,1.79182466]
[1766669475394,0.68383508,836.19,835.27,1.79182466]
[1766669475594,0.68383508,836.18,835.27,1.79182466]
[1766669475893,0.68383508,836.17,835.27,1.79182466]
[1766669476092,0.68383508,836.16,835.27,1.79182466]
[1766669476298,0.68383508,836.15,835.27,10.69176384]
[1766669476494,0.68383508,836.14,835.27,10.69176384]
[1766669476696,0.68383508,836.13,835.27,10.69176384]
[1766669476894,0.68383508,836.12,835.27,10.69176384]
[1766669477093,12.81646579,836.16,835.27,8.89993918]
[1766669477296,0.68427688,836.15,835.27,8.89993918]
[1766669477597,0.68427688,836.14,835.27,8.89993918]
[1766669477896,0.68427688,836.13,835.27,8.89993918]
[1766669478192,0.68427688,836.12,835.27,8.89993918]
[1766669478394,0.68427688,836.11,835.27,8.89993918]
[1766669478596,0.68427688,836.1,835.27,8.89993918]
[1766669478897,0.68427688,836.09,835.27,8.89993918]
[1766669479098,0.68427688,836.08,835.27,8.89993918]
[1766669479293,0.68427688,836.07,835.27,8.89993918]
[1766669479494,0.68427688,836.06,835.17,1.79182466]
[1766669479797,0.68427688,836.05,835.16,1.79182466]
[1766669479992,0.68427688,836.04,835.16,1.79182466]
[1766669480197,0.89233357,836.31,835.15,1.79182466]
[1766669480398,1.88072185,836.3,835.15,1.79182466]
[1766669480695,1.88072185,836.29,835.15,1.79182466]
[1766669480995,1.88072185,836.28,835.15,1.79182466]
[1766669481193,1.88072185,836.27,835.15,1.79182466]
[1766669481493,1.88072185,836.26,835.15,1.79182466]
[1766669481697,1.88072185,836.25,835.15,1.79182466]
[1766669481897,1.88072185,836.24,835.15,1.79182466]
[1766669482097,1.88072185,836.23,835.14,1.79182466]
[1766669482292,1.88072185,836.22,835.14,1.79182466]
[1766669482492,1.88072185,836.21,835.14,1.79182466]
[1766669482693,0.68387991,836.2,835.14,1.79182466]
[1766669482897,0.68387991,836.19,835.14,1.79182466]
[1766669483098,0.68387991,836.18,835.14,1.79182466]
[1766669483298,0.68387991,836.17,835.14,1.79182466]
[1766669483497,0.68387991,836.16,835.14,1.79182466]
[1766669483698,0.68387991,836.15,835.12,1.79182466]
[1766669484000,0.68387991,836.14,835.12,1.79182466]
[1766669484200,0.68387991,836.13,835.11,1.79182466]
[1766669484395,0.68387991,836.12,835.11,1.79182466]
[1766669484600,0.68387991,836.11,835.11,1.79182466]
[1766669484798,0.89233357,836.31,835.11,1.79182466]
[1766669484799,0.68387991,836.1,835.11,1.79182466]
[1766669484999,0.68387991,836.09,835.11,1.79182466]
[1766669485199,0.68387991,836.08,835.11,1.79182466]
[1766669485401,0.68387991,836.07,835.11,1.79182466]
[1766669485601,0.68387991,836.06,835.11,1.79182466]
[1766669485803,0.68387991,836.05,835.11,1.79182466]
[1766669486002,0.89233357,836.32,835.11,1.79182466]
[1766669486201,1.88012555,836.31,835.1,1.79182466]